[Event "Early-Titled-Tuesday-Blitz-March-26-2024"]
[Site "Chess.com"]
[Date "2024.03.26"]
[Round "5"]
[White "ViktoriyaTarasova"]
[Black "Golubovsky"]
[Result "1-0"]
[WhiteElo "2372"]
[BlackElo "2508"]
[TimeControl "180+1"]
[EndTime "8:52:26 PDT"]
[Termination "ViktoriyaTarasova won on time"]

1. d4 {[%clk 0:03:00.9]} 1... Nf6 {[%clk 0:02:59.4]} 2. c4 {[%clk 0:03:01.3]}
2... e6 {[%clk 0:02:59]} 3. Nc3 {[%clk 0:03:01.6]} 3... d5 {[%clk 0:02:59.2]} 4.
cxd5 {[%clk 0:03:01.6]} 4... exd5 {[%clk 0:02:58.2]} 5. Bg5 {[%clk 0:03:01.7]}
5... Be7 {[%clk 0:02:58.7]} 6. Qc2 {[%clk 0:03:01.2]} 6... c6 {[%clk 0:02:59]}
7. e3 {[%clk 0:03:01.7]} 7... O-O {[%clk 0:02:52.9]} 8. Bd3 {[%clk 0:03:01.8]}
8... Nbd7 {[%clk 0:02:50.4]} 9. Nge2 {[%clk 0:03:02]} 9... Re8 {[%clk
0:02:49.2]} 10. O-O {[%clk 0:03:02.1]} 10... Nf8 {[%clk 0:02:49]} 11. Rae1
{[%clk 0:03:01.3]} 11... Ne4 {[%clk 0:02:39.1]} 12. Bxe7 {[%clk 0:03:00.1]}
12... Qxe7 {[%clk 0:02:39.3]} 13. Bxe4 {[%clk 0:03:00.2]} 13... dxe4 {[%clk
0:02:39.8]} 14. Ng3 {[%clk 0:03:00.9]} 14... f5 {[%clk 0:02:37.9]} 15. f3 {[%clk
0:03:01.4]} 15... exf3 {[%clk 0:02:34.8]} 16. Rxf3 {[%clk 0:03:00.9]} 16... g6
{[%clk 0:02:34.1]} 17. e4 {[%clk 0:03:00.4]} 17... Bd7 {[%clk 0:02:11]} 18. Ref1
{[%clk 0:02:52.9]} 18... Ne6 {[%clk 0:01:57]} 19. Qf2 {[%clk 0:02:46.7]} 19...
f4 {[%clk 0:01:44.9]} 20. Nge2 {[%clk 0:02:45.2]} 20... g5 {[%clk 0:01:45]} 21.
g3 {[%clk 0:02:35.8]} 21... g4 {[%clk 0:01:27.2]} 22. Rxf4 {[%clk 0:02:34.4]}
22... Nxf4 {[%clk 0:01:25.4]} 23. gxf4 {[%clk 0:02:31.9]} 23... Rf8 {[%clk
0:01:14.5]} 24. f5 {[%clk 0:02:30.3]} 24... c5 {[%clk 0:01:02.5]} 25. dxc5
{[%clk 0:02:23.8]} 25... Rae8 {[%clk 0:00:51.7]} 26. b4 {[%clk 0:02:20.9]} 26...
Qe5 {[%clk 0:00:40.1]} 27. Qf4 {[%clk 0:02:19.4]} 27... Kh8 {[%clk 0:00:40.2]}
28. Qxe5+ {[%clk 0:02:10.3]} 28... Rxe5 {[%clk 0:00:39.8]} 29. Rd1 {[%clk
0:02:11]} 29... Bc6 {[%clk 0:00:38]} 30. Ng3 {[%clk 0:02:11.1]} 30... h5 {[%clk
0:00:31.4]} 31. Rd6 {[%clk 0:02:03.7]} 31... Kh7 {[%clk 0:00:17.9]} 32. Nxh5
{[%clk 0:02:00]} 32... a5 {[%clk 0:00:02.2]} 33. a3 {[%clk 0:01:56.8]} 33...
axb4 {[%clk 0:00:02.6]} 34. axb4 {[%clk 0:01:57.3]} 34... Ra8 {[%clk 0:00:03.4]}
35. Nf6+ {[%clk 0:01:51.5]} 1-0

[Event "Early-Titled-Tuesday-Blitz-March-26-2024"]
[Site "Chess.com"]
[Date "2024.03.26"]
[Round "5"]
[White "LiadCuba"]
[Black "KVAIDAN"]
[Result "0-1"]
[WhiteElo "2559"]
[BlackElo "2365"]
[TimeControl "180+1"]
[EndTime "8:52:33 PDT"]
[Termination "KVAIDAN won on time"]

1. d3 {[%clk 0:02:25.7]} 1... d6 {[%clk 0:02:52.3]} 2. c4 {[%clk 0:02:25.1]}
2... c6 {[%clk 0:02:50.3]} 3. Nc3 {[%clk 0:02:25.7]} 3... Nd7 {[%clk 0:02:50.5]}
4. Nf3 {[%clk 0:02:24.7]} 4... h6 {[%clk 0:02:50.1]} 5. g3 {[%clk 0:02:23.7]}
5... g5 {[%clk 0:02:49]} 6. Bg2 {[%clk 0:02:23.9]} 6... Bg7 {[%clk 0:02:49.3]}
7. O-O {[%clk 0:02:23.3]} 7... Qa5 {[%clk 0:02:47.7]} 8. Bd2 {[%clk 0:02:23.3]}
8... Nf8 {[%clk 0:02:47.5]} 9. Rb1 {[%clk 0:02:19.9]} 9... Ng6 {[%clk
0:02:45.4]} 10. b4 {[%clk 0:02:19.5]} 10... Qc7 {[%clk 0:02:45.5]} 11. b5 {[%clk
0:02:14]} 11... g4 {[%clk 0:02:44.8]} 12. Ne1 {[%clk 0:02:12.2]} 12... h5 {[%clk
0:02:37.8]} 13. Qa4 {[%clk 0:01:58.3]} 13... Bd7 {[%clk 0:02:36.8]} 14. b6
{[%clk 0:01:58]} 14... Qb8 {[%clk 0:02:31.4]} 15. bxa7 {[%clk 0:01:57.3]} 15...
Rxa7 {[%clk 0:02:27.4]} 16. Qb3 {[%clk 0:01:48.8]} 16... Nf6 {[%clk 0:02:23.2]}
17. Nc2 {[%clk 0:01:48.2]} 17... h4 {[%clk 0:02:22.8]} 18. Nd4 {[%clk 0:01:36]}
18... Ne5 {[%clk 0:02:18.2]} 19. Bf4 {[%clk 0:01:23.8]} 19... Nh5 {[%clk
0:02:12.5]} 20. Bxe5 {[%clk 0:01:14.9]} 20... Bxe5 {[%clk 0:02:11.4]} 21. Nxc6
{[%clk 0:01:09.4]} 21... Bxc6 {[%clk 0:02:07.4]} 22. Bxc6+ {[%clk 0:01:09.4]}
22... Kf8 {[%clk 0:02:07.9]} 23. Ne4 {[%clk 0:00:39.7]} 23... Kg7 {[%clk
0:01:32.5]} 24. Bxb7 {[%clk 0:00:23.2]} 24... f5 {[%clk 0:01:31.1]} 25. Ng5
{[%clk 0:00:13]} 25... Kf6 {[%clk 0:01:31]} 26. gxh4 {[%clk 0:00:11.6]} 26...
Nf4 {[%clk 0:01:29.7]} 0-1

[Event "Early-Titled-Tuesday-Blitz-March-26-2024"]
[Site "Chess.com"]
[Date "2024.03.26"]
[Round "5"]
[White "baki83"]
[Black "Rashad_Zeynalli"]
[Result "1-0"]
[WhiteElo "2863"]
[BlackElo "2681"]
[TimeControl "180+1"]
[EndTime "8:52:47 PDT"]
[Termination "baki83 won by resignation"]

1. e4 {[%clk 0:03:00.9]} 1... e5 {[%clk 0:02:58.5]} 2. Nf3 {[%clk 0:02:59.9]}
2... Nc6 {[%clk 0:02:58.5]} 3. Bb5 {[%clk 0:02:59.5]} 3... a6 {[%clk 0:02:59]}
4. Ba4 {[%clk 0:02:59.8]} 4... Nf6 {[%clk 0:02:59.6]} 5. O-O {[%clk 0:02:59.5]}
5... b5 {[%clk 0:03:00.2]} 6. Bb3 {[%clk 0:02:59.4]} 6... Bc5 {[%clk 0:03:00.9]}
7. c3 {[%clk 0:02:59.4]} 7... d6 {[%clk 0:03:00.7]} 8. d4 {[%clk 0:02:59.4]}
8... Bb6 {[%clk 0:03:01.4]} 9. a4 {[%clk 0:02:59.6]} 9... Rb8 {[%clk 0:02:59]}
10. h3 {[%clk 0:02:50.6]} 10... O-O {[%clk 0:02:56.6]} 11. Bg5 {[%clk
0:02:48.1]} 11... h6 {[%clk 0:02:54.2]} 12. Bh4 {[%clk 0:02:48.4]} 12... Re8
{[%clk 0:02:48.6]} 13. Nbd2 {[%clk 0:02:46.9]} 13... exd4 {[%clk 0:02:42.7]} 14.
axb5 {[%clk 0:02:46.7]} 14... axb5 {[%clk 0:02:41.9]} 15. Bd5 {[%clk 0:02:47]}
15... Bb7 {[%clk 0:02:37.9]} 16. Qb3 {[%clk 0:02:42.7]} 16... Qe7 {[%clk
0:02:31.5]} 17. Qxb5 {[%clk 0:02:33.1]} 17... dxc3 {[%clk 0:02:15.2]} 18. bxc3
{[%clk 0:02:24.3]} 18... Ne5 {[%clk 0:02:13.9]} 19. Bxf6 {[%clk 0:02:17.8]}
19... gxf6 {[%clk 0:01:53.6]} 20. Bxb7 {[%clk 0:02:09.7]} 20... Rxb7 {[%clk
0:01:54.5]} 21. Nd4 {[%clk 0:02:01.5]} 21... c6 {[%clk 0:01:37.2]} 22. Qa6
{[%clk 0:01:49.1]} 22... Kh7 {[%clk 0:01:16.5]} 23. Nf5 {[%clk 0:01:48.3]} 23...
Qd7 {[%clk 0:01:14.5]} 24. Rab1 {[%clk 0:01:41.1]} 24... Reb8 {[%clk 0:01:13.5]}
25. Kh1 {[%clk 0:01:38.1]} 25... d5 {[%clk 0:01:13.1]} 26. Qe2 {[%clk
0:01:28.8]} 26... dxe4 {[%clk 0:01:01.7]} 27. Ng3 {[%clk 0:00:58]} 27... f5
{[%clk 0:00:49]} 28. Rfd1 {[%clk 0:00:50.7]} 28... Nd3 {[%clk 0:00:44.2]} 29.
Ndxe4 {[%clk 0:00:47.3]} 29... Rd8 {[%clk 0:00:37]} 30. Nf6+ {[%clk 0:00:45.6]}
1-0

[Event "Early-Titled-Tuesday-Blitz-March-26-2024"]
[Site "Chess.com"]
[Date "2024.03.26"]
[Round "5"]
[White "Zampronha1971"]
[Black "imdvb6307"]
[Result "1/2-1/2"]
[WhiteElo "2357"]
[BlackElo "2509"]
[TimeControl "180+1"]
[EndTime "8:52:53 PDT"]
[Termination "Game drawn by repetition"]

1. e4 {[%clk 0:03:00.9]} 1... Nc6 {[%clk 0:02:58.6]} 2. Nf3 {[%clk 0:03:00.5]}
2... d6 {[%clk 0:02:58.4]} 3. d4 {[%clk 0:02:59.9]} 3... Nf6 {[%clk 0:02:58.6]}
4. Nc3 {[%clk 0:02:58.9]} 4... Bg4 {[%clk 0:02:58.6]} 5. Bb5 {[%clk 0:02:58.3]}
5... a6 {[%clk 0:02:58.1]} 6. Bxc6+ {[%clk 0:02:58.2]} 6... bxc6 {[%clk
0:02:58.8]} 7. h3 {[%clk 0:02:58.4]} 7... Bh5 {[%clk 0:02:58.2]} 8. O-O {[%clk
0:02:57.2]} 8... e6 {[%clk 0:02:58]} 9. e5 {[%clk 0:02:40]} 9... Nd7 {[%clk
0:02:46.1]} 10. Re1 {[%clk 0:02:27.3]} 10... d5 {[%clk 0:02:44.4]} 11. Be3
{[%clk 0:02:17]} 11... c5 {[%clk 0:02:20.1]} 12. dxc5 {[%clk 0:02:10]} 12...
Bxc5 {[%clk 0:02:12.4]} 13. Bxc5 {[%clk 0:02:09.5]} 13... Nxc5 {[%clk
0:02:12.1]} 14. Qd4 {[%clk 0:02:09.3]} 14... Nd7 {[%clk 0:02:00.2]} 15. Qf4
{[%clk 0:02:01.5]} 15... c5 {[%clk 0:01:47.3]} 16. Ne2 {[%clk 0:01:55.5]} 16...
Qc7 {[%clk 0:01:36]} 17. Ng3 {[%clk 0:01:54.1]} 17... Bg6 {[%clk 0:01:31.7]} 18.
c4 {[%clk 0:01:51.7]} 18... d4 {[%clk 0:01:20.3]} 19. Nh4 {[%clk 0:01:47.8]}
19... O-O {[%clk 0:01:17.3]} 20. Nxg6 {[%clk 0:01:43]} 20... hxg6 {[%clk
0:01:03.5]} 21. b3 {[%clk 0:01:32.5]} 21... a5 {[%clk 0:01:02.9]} 22. Ne4 {[%clk
0:01:30.3]} 22... Qxe5 {[%clk 0:00:55.5]} 23. Qxe5 {[%clk 0:01:29.2]} 23... Nxe5
{[%clk 0:00:55.4]} 24. Nxc5 {[%clk 0:01:29.3]} 24... Nc6 {[%clk 0:00:54.8]} 25.
f4 {[%clk 0:01:22.2]} 25... Rfd8 {[%clk 0:00:50.7]} 26. Kf2 {[%clk 0:01:16.2]}
26... Kf8 {[%clk 0:00:50.5]} 27. Kf3 {[%clk 0:01:10.7]} 27... Ke7 {[%clk
0:00:48.1]} 28. Rad1 {[%clk 0:01:05.7]} 28... Rdb8 {[%clk 0:00:37]} 29. g4
{[%clk 0:00:57.5]} 29... Kd6 {[%clk 0:00:36.3]} 30. Ne4+ {[%clk 0:00:55.7]}
30... Kc7 {[%clk 0:00:31.4]} 31. Nc5 {[%clk 0:00:53.8]} 31... Kd6 {[%clk
0:00:29.8]} 32. Ne4+ {[%clk 0:00:53.1]} 32... Kc7 {[%clk 0:00:30.1]} 33. Nc5
{[%clk 0:00:53.2]} 33... Kd6 {[%clk 0:00:30.3]} 1/2-1/2

[Event "Early-Titled-Tuesday-Blitz-March-26-2024"]
[Site "Chess.com"]
[Date "2024.03.26"]
[Round "5"]
[White "stasOR4ik"]
[Black "SashaKuzhilniy"]
[Result "0-1"]
[WhiteElo "2440"]
[BlackElo "2601"]
[TimeControl "180+1"]
[EndTime "8:52:56 PDT"]
[Termination "SashaKuzhilniy won by checkmate"]

1. e4 {[%clk 0:03:00.9]} 1... e6 {[%clk 0:03:00.3]} 2. b3 {[%clk 0:02:59.5]}
2... d5 {[%clk 0:03:01.2]} 3. Bb2 {[%clk 0:02:59.1]} 3... Nc6 {[%clk 0:02:58]}
4. e5 {[%clk 0:02:55.9]} 4... d4 {[%clk 0:02:54.3]} 5. Nf3 {[%clk 0:02:54.9]}
5... Bc5 {[%clk 0:02:53.1]} 6. Bb5 {[%clk 0:02:46.5]} 6... Ne7 {[%clk
0:02:52.7]} 7. O-O {[%clk 0:02:42.6]} 7... O-O {[%clk 0:02:48]} 8. Qe2 {[%clk
0:02:39.7]} 8... a6 {[%clk 0:02:46.9]} 9. Bxc6 {[%clk 0:02:30.2]} 9... Nxc6
{[%clk 0:02:45.1]} 10. d3 {[%clk 0:02:28.5]} 10... b5 {[%clk 0:02:43.3]} 11.
Nbd2 {[%clk 0:02:27.2]} 11... Bb7 {[%clk 0:02:43.7]} 12. Ne4 {[%clk 0:02:15.9]}
12... Be7 {[%clk 0:02:43]} 13. Ng3 {[%clk 0:02:10.5]} 13... Qd5 {[%clk 0:02:29]}
14. Rfe1 {[%clk 0:01:59.8]} 14... Rfd8 {[%clk 0:02:24.9]} 15. Nh5 {[%clk
0:01:56.1]} 15... Bf8 {[%clk 0:02:10.6]} 16. Nf4 {[%clk 0:01:46]} 16... Qc5
{[%clk 0:02:04.1]} 17. Ng5 {[%clk 0:01:40.3]} 17... h6 {[%clk 0:01:56.6]} 18.
Nxf7 {[%clk 0:01:35.8]} 18... Kxf7 {[%clk 0:01:51.6]} 19. Qh5+ {[%clk 0:01:31]}
19... Kg8 {[%clk 0:01:51.8]} 20. Nxe6 {[%clk 0:01:29.7]} 20... Qd5 {[%clk
0:01:51.9]} 21. Nxc7 {[%clk 0:01:18.1]} 21... Qc5 {[%clk 0:01:35]} 22. Nxa8
{[%clk 0:01:04.8]} 22... Bxa8 {[%clk 0:01:35.9]} 23. Re2 {[%clk 0:01:01.9]}
23... Ne7 {[%clk 0:01:20.1]} 24. f4 {[%clk 0:00:51.1]} 24... Nd5 {[%clk
0:01:17.4]} 25. f5 {[%clk 0:00:37.7]} 25... Nf4 {[%clk 0:01:14.1]} 26. Qg4
{[%clk 0:00:34.1]} 26... Nxe2+ {[%clk 0:01:13.8]} 27. Qxe2 {[%clk 0:00:35]}
27... Re8 {[%clk 0:01:11.4]} 28. Re1 {[%clk 0:00:33.2]} 28... Bd6 {[%clk
0:01:10.9]} 29. e6 {[%clk 0:00:20.3]} 29... Qxf5 {[%clk 0:01:09.9]} 30. Bxd4
{[%clk 0:00:20.7]} 30... Bc5 {[%clk 0:01:10.3]} 31. Qe3 {[%clk 0:00:15.2]} 31...
Qd5 {[%clk 0:01:07.2]} 32. Bxc5 {[%clk 0:00:08.6]} 32... Qxg2# {[%clk
0:01:06.9]} 0-1

[Event "Early-Titled-Tuesday-Blitz-March-26-2024"]
[Site "Chess.com"]
[Date "2024.03.26"]
[Round "5"]
[White "jefferyx"]
[Black "TigrVShlyape"]
[Result "0-1"]
[WhiteElo "3090"]
[BlackElo "2914"]
[TimeControl "180+1"]
[EndTime "8:53:01 PDT"]
[Termination "TigrVShlyape won by resignation"]

1. e4 {[%clk 0:03:00.9]} 1... c5 {[%clk 0:02:59]} 2. Nf3 {[%clk 0:02:59.8]} 2...
e6 {[%clk 0:02:58.2]} 3. c3 {[%clk 0:02:59.5]} 3... Nf6 {[%clk 0:02:45.7]} 4.
Bd3 {[%clk 0:02:59]} 4... d5 {[%clk 0:02:39.9]} 5. e5 {[%clk 0:02:58.8]} 5...
Nfd7 {[%clk 0:02:39.8]} 6. Bc2 {[%clk 0:02:59.4]} 6... c4 {[%clk 0:02:38.3]} 7.
d4 {[%clk 0:02:59.7]} 7... cxd3 {[%clk 0:02:37.8]} 8. Qxd3 {[%clk 0:03:00.4]}
8... Nc6 {[%clk 0:02:36.5]} 9. Bf4 {[%clk 0:03:01]} 9... Be7 {[%clk 0:02:26.4]}
10. h4 {[%clk 0:03:00.7]} 10... Qc7 {[%clk 0:02:17.6]} 11. Qe3 {[%clk
0:03:00.8]} 11... Qb6 {[%clk 0:02:13.4]} 12. Qxb6 {[%clk 0:02:58.9]} 12... axb6
{[%clk 0:02:02.8]} 13. Bd3 {[%clk 0:02:53.8]} 13... Nc5 {[%clk 0:02:00.9]} 14.
Be2 {[%clk 0:02:54]} 14... Nb3 {[%clk 0:01:59.1]} 15. axb3 {[%clk 0:02:51.4]}
15... Rxa1 {[%clk 0:01:58.7]} 16. Kd2 {[%clk 0:02:51.6]} 16... Bd7 {[%clk
0:01:53.3]} 17. b4 {[%clk 0:02:29.4]} 17... d4 {[%clk 0:01:36.6]} 18. Rd1 {[%clk
0:02:08.3]} 18... dxc3+ {[%clk 0:01:34.2]} 19. bxc3 {[%clk 0:02:09.2]} 19... O-O
{[%clk 0:01:32.4]} 20. Kc1 {[%clk 0:02:04.7]} 20... Rd8 {[%clk 0:01:29.8]} 21.
Kb2 {[%clk 0:02:04.6]} 21... Raa8 {[%clk 0:01:24.2]} 22. Na3 {[%clk 0:02:02]}
22... Be8 {[%clk 0:01:22.6]} 23. Ra1 {[%clk 0:01:48.6]} 23... f6 {[%clk
0:01:21.6]} 24. Be3 {[%clk 0:01:46.7]} 24... Nxe5 {[%clk 0:01:16.8]} 25. Nxe5
{[%clk 0:01:46.9]} 25... fxe5 {[%clk 0:01:16.4]} 26. g3 {[%clk 0:01:47.8]} 26...
Bc6 {[%clk 0:01:12.5]} 27. Nc4 {[%clk 0:01:47.1]} 27... Rxa1 {[%clk 0:01:11.5]}
28. Kxa1 {[%clk 0:01:48]} 28... Bb5 {[%clk 0:01:10.7]} 29. Kb2 {[%clk
0:01:45.3]} 29... Bxc4 {[%clk 0:01:05]} 30. Bxc4 {[%clk 0:01:45.4]} 30... Rd6
{[%clk 0:01:05.5]} 31. Kc2 {[%clk 0:01:42.9]} 31... e4 {[%clk 0:01:03.2]} 32.
Bf4 {[%clk 0:01:43.2]} 32... Rc6 {[%clk 0:01:03]} 33. Bb5 {[%clk 0:01:40.7]}
33... Kf7 {[%clk 0:00:59.2]} 34. Bxc6 {[%clk 0:01:19.5]} 34... bxc6 {[%clk
0:00:58.9]} 35. h5 {[%clk 0:01:20.4]} 35... g6 {[%clk 0:00:58.5]} 36. hxg6+
{[%clk 0:01:18.3]} 36... Kxg6 {[%clk 0:00:58.7]} 37. Kd2 {[%clk 0:01:04.4]}
37... Kf5 {[%clk 0:00:55.3]} 38. Ke2 {[%clk 0:01:01.3]} 38... b5 {[%clk
0:00:54.7]} 39. Bd2 {[%clk 0:00:49.7]} 39... Ke5 {[%clk 0:00:52.6]} 40. g4
{[%clk 0:00:47.9]} 40... Kd5 {[%clk 0:00:52.1]} 41. Be1 {[%clk 0:00:36.5]} 41...
Bg5 {[%clk 0:00:50.9]} 0-1

[Event "Early-Titled-Tuesday-Blitz-March-26-2024"]
[Site "Chess.com"]
[Date "2024.03.26"]
[Round "5"]
[White "Suleyman_Chess06"]
[Black "dretch"]
[Result "1-0"]
[WhiteElo "2703"]
[BlackElo "2863"]
[TimeControl "180+1"]
[EndTime "8:53:01 PDT"]
[Termination "Suleyman_Chess06 won on time"]

1. Nf3 {[%clk 0:03:00.9]} 1... d5 {[%clk 0:02:58.9]} 2. g3 {[%clk 0:03:01.6]}
2... Bg4 {[%clk 0:02:58.6]} 3. Bg2 {[%clk 0:03:02.1]} 3... Nd7 {[%clk
0:02:59.1]} 4. O-O {[%clk 0:03:01.9]} 4... e6 {[%clk 0:02:59.6]} 5. d4 {[%clk
0:03:02.3]} 5... Bd6 {[%clk 0:02:59.9]} 6. h3 {[%clk 0:03:03]} 6... Bh5 {[%clk
0:02:59.4]} 7. c4 {[%clk 0:03:03.6]} 7... c6 {[%clk 0:02:58.5]} 8. cxd5 {[%clk
0:03:04.1]} 8... exd5 {[%clk 0:02:56.1]} 9. Bf4 {[%clk 0:02:54.2]} 9... Bxf4
{[%clk 0:02:51.9]} 10. gxf4 {[%clk 0:02:55.1]} 10... Qf6 {[%clk 0:02:48]} 11. e3
{[%clk 0:02:54.7]} 11... Ne7 {[%clk 0:02:45]} 12. Nbd2 {[%clk 0:02:53.7]} 12...
O-O {[%clk 0:02:41.7]} 13. Qb3 {[%clk 0:02:53.9]} 13... Nb6 {[%clk 0:02:37.8]}
14. a4 {[%clk 0:02:53.5]} 14... Rab8 {[%clk 0:02:35.5]} 15. a5 {[%clk
0:02:48.5]} 15... Nd7 {[%clk 0:02:34.7]} 16. Rac1 {[%clk 0:02:47.8]} 16... Nf5
{[%clk 0:02:28.6]} 17. a6 {[%clk 0:02:42]} 17... bxa6 {[%clk 0:02:23.8]} 18. Qa4
{[%clk 0:02:42.2]} 18... Rb6 {[%clk 0:02:21.9]} 19. Rc2 {[%clk 0:02:39.1]} 19...
Bg6 {[%clk 0:02:10]} 20. Rc3 {[%clk 0:02:37]} 20... Ne7 {[%clk 0:02:01.9]} 21.
Rfc1 {[%clk 0:02:32.4]} 21... Rxb2 {[%clk 0:01:46.7]} 22. Qxa6 {[%clk
0:02:32.2]} 22... Ra8 {[%clk 0:01:46.1]} 23. Nf1 {[%clk 0:01:28.2]} 23... Be4
{[%clk 0:01:30.9]} 24. Ng3 {[%clk 0:01:27.3]} 24... Bxf3 {[%clk 0:01:28]} 25.
Bxf3 {[%clk 0:01:28.2]} 25... g6 {[%clk 0:01:20.9]} 26. Rxc6 {[%clk 0:01:15.3]}
26... Nxc6 {[%clk 0:01:15.4]} 27. Rxc6 {[%clk 0:01:16.2]} 27... Qh4 {[%clk
0:00:18.3]} 28. Rc8+ {[%clk 0:01:09.6]} 28... Rxc8 {[%clk 0:00:16.2]} 29. Qxc8+
{[%clk 0:01:10.5]} 29... Nf8 {[%clk 0:00:16.1]} 30. Bxd5 {[%clk 0:01:08]} 30...
Qxh3 {[%clk 0:00:12.5]} 31. Qxh3 {[%clk 0:01:06.9]} 1-0

[Event "Early-Titled-Tuesday-Blitz-March-26-2024"]
[Site "Chess.com"]
[Date "2024.03.26"]
[Round "5"]
[White "Oleksandr_Bortnyk"]
[Black "mbojan"]
[Result "1-0"]
[WhiteElo "3090"]
[BlackElo "2891"]
[TimeControl "180+1"]
[EndTime "8:53:08 PDT"]
[Termination "Oleksandr_Bortnyk won on time"]

1. e4 {[%clk 0:02:58.5]} 1... a6 {[%clk 0:03:00.1]} 2. Bc4 {[%clk 0:02:55.6]}
2... e6 {[%clk 0:02:59.8]} 3. Bb3 {[%clk 0:02:52]} 3... d5 {[%clk 0:02:59.3]} 4.
Nc3 {[%clk 0:02:50.2]} 4... Nf6 {[%clk 0:02:49.5]} 5. Qe2 {[%clk 0:02:29.2]}
5... dxe4 {[%clk 0:02:26.6]} 6. Nxe4 {[%clk 0:02:30.1]} 6... Nbd7 {[%clk
0:02:26.9]} 7. d3 {[%clk 0:02:27.2]} 7... Be7 {[%clk 0:02:22.8]} 8. Nf3 {[%clk
0:02:27.4]} 8... O-O {[%clk 0:02:23]} 9. O-O {[%clk 0:02:28]} 9... b5 {[%clk
0:02:23.4]} 10. Re1 {[%clk 0:02:24.4]} 10... Bb7 {[%clk 0:02:23.6]} 11. Bf4
{[%clk 0:02:06.4]} 11... Nxe4 {[%clk 0:02:14.1]} 12. dxe4 {[%clk 0:02:07.3]}
12... Nc5 {[%clk 0:02:14.6]} 13. Rad1 {[%clk 0:02:07.1]} 13... Qc8 {[%clk
0:02:15]} 14. Ne5 {[%clk 0:02:03.8]} 14... Nxb3 {[%clk 0:02:10.5]} 15. axb3
{[%clk 0:02:04.7]} 15... Bd6 {[%clk 0:01:22.3]} 16. Qg4 {[%clk 0:02:02.1]} 16...
f6 {[%clk 0:01:19]} 17. Bh6 {[%clk 0:02:00.4]} 17... g5 {[%clk 0:00:52.7]} 18.
Bxf8 {[%clk 0:02:00.2]} 18... Kxf8 {[%clk 0:00:50.8]} 19. Nf3 {[%clk 0:01:55.1]}
19... e5 {[%clk 0:00:50.9]} 20. Qh5 {[%clk 0:01:52.1]} 20... Kg7 {[%clk
0:00:50.3]} 21. h4 {[%clk 0:01:46.9]} 21... h6 {[%clk 0:00:50]} 22. Nh2 {[%clk
0:01:34.4]} 22... Qe8 {[%clk 0:00:48.4]} 23. Qxe8 {[%clk 0:01:31.4]} 23... Rxe8
{[%clk 0:00:49.3]} 24. hxg5 {[%clk 0:01:32]} 24... hxg5 {[%clk 0:00:49.5]} 25.
Ng4 {[%clk 0:01:32.2]} 25... Kf7 {[%clk 0:00:46.4]} 26. Nh6+ {[%clk 0:01:29.9]}
26... Ke6 {[%clk 0:00:45.5]} 27. Nf5 {[%clk 0:01:30.8]} 27... Rh8 {[%clk
0:00:42.7]} 28. g4 {[%clk 0:01:24.8]} 28... a5 {[%clk 0:00:39.5]} 29. f3 {[%clk
0:01:22.7]} 29... a4 {[%clk 0:00:38.9]} 30. bxa4 {[%clk 0:01:19.3]} 30... bxa4
{[%clk 0:00:39.8]} 31. Kg2 {[%clk 0:01:15.9]} 31... Rb8 {[%clk 0:00:38.4]} 32.
Rh1 {[%clk 0:01:15.3]} 32... Ba6 {[%clk 0:00:37.4]} 33. Rh7 {[%clk 0:01:11.3]}
33... Bf8 {[%clk 0:00:30.9]} 34. Rxc7 {[%clk 0:01:07.9]} 34... Bb5 {[%clk
0:00:20.7]} 35. Rd6+ {[%clk 0:01:07.4]} 1-0

[Event "Early-Titled-Tuesday-Blitz-March-26-2024"]
[Site "Chess.com"]
[Date "2024.03.26"]
[Round "5"]
[White "kritipatel"]
[Black "Charodej1"]
[Result "0-1"]
[WhiteElo "2189"]
[BlackElo "2432"]
[TimeControl "180+1"]
[EndTime "8:53:11 PDT"]
[Termination "Charodej1 won by resignation"]

1. e4 {[%clk 0:03:00.4]} 1... b6 {[%clk 0:02:57.6]} 2. d4 {[%clk 0:02:59.9]}
2... Bb7 {[%clk 0:02:57.3]} 3. Bd3 {[%clk 0:03:00.2]} 3... e6 {[%clk 0:02:55.9]}
4. Be3 {[%clk 0:02:59.9]} 4... d6 {[%clk 0:02:54.1]} 5. Nc3 {[%clk 0:02:59]}
5... c5 {[%clk 0:02:53.8]} 6. f4 {[%clk 0:02:57.7]} 6... Nf6 {[%clk 0:02:49.1]}
7. Nf3 {[%clk 0:02:56.9]} 7... Nc6 {[%clk 0:02:46]} 8. O-O {[%clk 0:02:53.8]}
8... Be7 {[%clk 0:02:40.5]} 9. h3 {[%clk 0:02:49.8]} 9... O-O {[%clk 0:02:13.2]}
10. e5 {[%clk 0:02:46.9]} 10... Nd5 {[%clk 0:01:53.4]} 11. Nxd5 {[%clk
0:02:31.5]} 11... exd5 {[%clk 0:01:53.6]} 12. Ng5 {[%clk 0:02:25.6]} 12... Bxg5
{[%clk 0:01:47.4]} 13. fxg5 {[%clk 0:02:24.6]} 13... cxd4 {[%clk 0:01:39.3]} 14.
Bxd4 {[%clk 0:02:19.2]} 14... dxe5 {[%clk 0:01:27.6]} 15. Be3 {[%clk 0:02:08.2]}
15... Nb4 {[%clk 0:01:16.2]} 16. Bf5 {[%clk 0:01:58.3]} 16... Bc8 {[%clk
0:01:07.1]} 17. c3 {[%clk 0:01:45.9]} 17... Bxf5 {[%clk 0:01:03.9]} 18. Rxf5
{[%clk 0:01:46.4]} 18... Nc6 {[%clk 0:01:03.7]} 19. Qg4 {[%clk 0:01:36.4]} 19...
Qe7 {[%clk 0:00:49.2]} 20. Raf1 {[%clk 0:01:32.6]} 20... Rad8 {[%clk 0:00:40.5]}
21. Rf6 {[%clk 0:01:21.3]} 21... d4 {[%clk 0:00:30.5]} 22. Bxd4 {[%clk
0:01:11.9]} 22... Nxd4 {[%clk 0:00:29]} 23. cxd4 {[%clk 0:01:10.6]} 23... exd4
{[%clk 0:00:27.5]} 24. Qf5 {[%clk 0:01:08.2]} 24... d3 {[%clk 0:00:19]} 25. Rc6
{[%clk 0:00:54.6]} 25... d2 {[%clk 0:00:17.6]} 26. Qf3 {[%clk 0:00:51.2]} 26...
Qxg5 {[%clk 0:00:13.6]} 27. Rc7 {[%clk 0:00:49.2]} 27... Qd5 {[%clk 0:00:12.7]}
28. Qe2 {[%clk 0:00:46.4]} 28... Qd4+ {[%clk 0:00:12.9]} 29. Kh2 {[%clk
0:00:46.3]} 29... Qd6+ {[%clk 0:00:13.1]} 0-1